Cogmind - Beta 10.1 @@@ ROGUE MODE // 2020.10.05 @ 17:55:07 Player: Cracklepappy Result: Destroyed by H-77 Assassin with Coil Gun Performance ------------- Evolutions (7) 3500 Regions Visited (28) 5600 Robots Destroyed (637) 3185 Value Destroyed (28839) 28839 Prototype IDs (73) 1460 Alien Tech Used (0) 0 Bonus (13705) 13705 TOTAL SCORE: 56289 Bonus ------- High Alert Combat Kills 6550 Follower Combat Kills 1662 Entered Garrisons 1600 Used RIF Installer 4000 Aligned with FarCom 300 Scanned by Researcher 500 Friendly Fire -907 Cogmind --------- Core Integrity 0/1300 Matter 300/300 Energy 100/100 System Corruption 23% Temperature Cool (21) Movement Core (50) Location -3/Testing Parts ------- > --- POWER (2) -------- (None) > --- PROPULSION (2) --- (None) > --- UTILITY (15) ----- Experimental Targeting Computer Advanced Core Analyzer Advanced Armor Integrity Analyzer Advanced System Shield > --- WEAPON (2) ------- (None) > --- INVENTORY (4) ---- Advanced Cooling System Quantum Capacitor Phase Gun Peak State ------------ > --- POWER ------------ Light Antimatter Reactor Light Particle Reactor > --- PROPULSION ------- Heavy Treads > --- UTILITY ---------- Advanced Cooling System High-capacity Storage Unit High-capacity Storage Unit High-capacity Storage Unit High-capacity Storage Unit High-capacity Storage Unit High-capacity Storage Unit Experimental Targeting Computer SHELL Armor Experimental Hacking Suite Advanced System Shield Relay Coupler [NC] Advanced Component Analysis Suite > --- WEAPON ----------- Heavy Neutron Cannon Force Lance > --- INVENTORY -------- Micro Fission Core Light Antimatter Reactor Compact Particle Reactor Enhanced Armored Medium Treads Biometal Medium Treads Improved Heavy Siege Treads Advanced Cooling System Advanced Cooling System High-capacity Matter Pod Spectral Analyzer Long-range Sensor Array Advanced Salvage Targeting Computer Advanced Core Analyzer Advanced Armor Integrity Analyzer Quantum Capacitor Quantum Capacitor Advanced Transmission Jammer Improved Cloaking Device Medium Regenerative Plating Heavy Regenerative Plating ME-RLN's Chromatic Screen Advanced Force Field Advanced Force Field Antimissile System Advanced Hacking Suite Improved System Shield Relay Coupler [NC] Relay Coupler [NC] Relay Coupler [NC] Relay Coupler [NC] Relay Coupler [NC] Relay Coupler [Sentry] Long-range Tractor Beam Advanced Recalibrator Variable Charge Gun Cooled Phase Gun Heavy Dispersion Rifle Coil Gun KE Penetrator Hypervelocity Railgun Hypervelocity Railgun Hypervelocity Railgun 8R-AWN's Boregun Hardcell Cannon Micro-nuke Launcher Improved Remote Datajack ME-RLN's Wand Force Lance [Rating: 145] Favorites ----------- Power Antimatter Reactor Engine Improved Ion Engine Power Core Enhanced Fission Core Reactor Antimatter Reactor Propulsion Light Treads Treads Light Treads Leg Carbon-fiber Leg Wheel Wheel Flight Unit Xenon Bombardment Thruster Utility High-capacity Storage Unit Device Improved Cooling System Storage High-capacity Storage Unit Processor Experimental Targeting Computer Hackware Relay Coupler [NC] Protection Damper Plating Weapon Heavy Assault Rifle Energy Gun EM Pulse Gun Energy Cannon HERF Cannon Ballistic Gun Heavy Assault Rifle Ballistic Cannon Assault Cannon Launcher EMP Blaster Special Weapon ME-RLN's Wand Slashing Weapon Chainsword Piercing Weapon Force Lance Build | -11 -10 -10 -9 -9 -9 -8 -8 -8 -8 -8 -7 -7 -7 -7 -6 -6 -6 -6 -5 -5 -5 -5 -4 -4 -4 -4 -3 -3 ------- Run | Scr Mat Min Mat Min Exi Min Mat Gar Mat Gar Fac Gar Fac Gar Fac Was Fac Gar Fac Gar Fac Gar Fac Was Fac Gar Res Tes Slots Evolved 14 | . . . 2 . . . 2 . . . 2 . . . 2 . . . 2 . . . 2 . . . 2 . Power 1 | . . . . . . . . . . . . . . . . . . . . . . . 1 . . . . . Propulsion . | . . . . . . . . . . . . . . . . . . . . . . . . . . . . . Utility 13 | . . . 2 . . . 2 . . . 2 . . . 2 . . . 2 . . . 1 . . . 2 . Weapon . | . . . . . . . . . . . . . . . . . . . . . . . . . . . . . Parts Attached 527 | 7 13 10 25 2 27 5 18 28 20 11 27 10 1 11 28 20 5 25 15 9 3 26 6 12 46 29 26 62 Power 38 | . 1 1 1 . 1 2 3 2 . . 1 . . 1 2 1 . . 1 . . . 1 2 1 5 2 10 Engine 5 | . 1 1 1 . . . 1 . . . . . . . 1 . . . . . . . . . . . . . Core 8 | . . . . . 1 1 1 1 . . . . . 1 1 . . . 1 . . . . . . . . 1 Reactor 25 | . . . . . . 1 1 1 . . 1 . . . . 1 . . . . . . 1 2 1 5 2 9 Propulsion 59 | 2 1 2 7 . 5 . 1 4 6 4 5 . . 3 5 1 . . 1 . . . . 1 2 1 2 6 Treads 51 | 1 . 1 7 . 4 . 1 4 6 4 5 . . 3 4 1 . . 1 . . . . 1 2 1 2 3 Leg 3 | . . . . . 1 . . . . . . . . . 1 . . . . . . . . . . . . 1 Wheel 3 | 1 1 1 . . . . . . . . . . . . . . . . . . . . . . . . . . Hover . | . . . . . . . . . . . . . . . . . . . . . . . . . . . . . Flight 2 | . . . . . . . . . . . . . . . . . . . . . . . . . . . . 2 Utility 170 | 2 2 . 4 2 11 . 3 10 5 1 11 3 1 1 11 10 4 11 6 3 1 5 4 4 13 14 8 20 Device 50 | . . . . . 3 . 2 . . . 1 . . . . 4 2 . 2 1 . 1 1 1 5 11 7 9 Storage 28 | 2 2 . 1 . 2 . . 5 3 . 1 1 . . 1 1 2 1 2 . . . . 1 2 . . 1 Processor 7 | . . . . . . . . . . . . . . . . 1 . . . . . . . 1 1 1 1 2 Hackware 23 | . . . . . . . . . . . 2 . . . 4 1 . 7 . 2 1 2 1 . 1 . . 2 Protection 62 | . . . 3 2 6 . 1 5 2 1 7 2 1 1 6 3 . 3 2 . . 2 2 1 4 2 . 6 Artifact . | . . . . . . . . . . . . . . . . . . . . . . . . . . . . . Weapon 260 | 3 9 7 13 . 10 3 11 12 9 6 10 7 . 6 10 8 1 14 7 6 2 21 1 5 30 9 14 26 Energy Gun 14 | 2 2 . 5 . . . . . . . . . . . . . . . . . . . . . . . . 5 Energy Cannon 36 | . 5 2 1 . . . . . . . . . . . . . . . . . . 4 . 2 11 3 3 5 Ballistic Gun 100 | 1 2 1 4 . 7 2 6 4 2 3 6 2 . 4 7 4 1 6 3 2 1 5 . . 8 5 6 8 Ballistic Cannon 20 | . . . . . . . . 4 4 . 1 1 . . . 2 . . 1 . . 4 1 . 1 . . 1 Launcher 41 | . . 4 3 . 1 . 4 2 3 2 2 3 . 2 . . . 1 1 1 . 2 . . 5 . 1 4 Special Weapon 32 | . . . . . 1 1 . . . . 1 . . . 3 1 . 3 2 3 1 6 . 3 3 . 2 2 Impact Weapon . | . . . . . . . . . . . . . . . . . . . . . . . . . . . . . Slashing Weapon 12 | . . . . . 1 . 1 2 . 1 . 1 . . . 1 . 4 . . . . . . 1 . . . Piercing Weapon 5 | . . . . . . . . . . . . . . . . . . . . . . . . . 1 1 2 1 Special Melee Weapon . | . . . . . . . . . . . . . . . . . . . . . . . . . . . . . Unidentified Prototypes 13 | . . . . . 6 2 3 . . . . . . . . . . . 1 . . . . . . . . 1 Parts Lost 155 | . 4 3 3 . 7 1 2 8 2 3 7 2 . 5 12 . . 1 2 1 . 1 . 1 11 9 10 60 Power 21 | . . 1 . . 1 . . 2 . . . . . 1 1 . . . . . . . . . 1 2 2 10 Propulsion 29 | . 1 2 1 . 1 . . 2 2 1 3 . . 3 3 . . . . . . . . . 2 1 2 5 Utility 57 | . . . 1 . 1 . . 2 . 1 2 2 . . 4 . . 1 1 1 . 1 . 1 6 3 3 27 Weapon 48 | . 3 . 1 . 4 1 2 2 . 1 2 . . 1 4 . . . 1 . . . . . 2 3 3 18 Highest Loss Streak 35 | . 2 2 1 . 3 1 1 3 1 2 2 1 . 4 9 . . 1 1 1 . 1 . 1 4 5 2 35 Average Slot Usage (%) 86 | . 96 99 98 100 79 73 70 72 89 89 95 98 100 99 92 87 80 78 77 79 82 81 81 78 84 88 84 83 Engine 1 | . 12 14 11 11 4 . 6 1 . . . . . . . . . . . . . . . . . . . . Core 1 | . . . . . . 7 2 4 . . . . . 5 2 . . . 3 5 5 5 5 . . . . . Reactor 4 | . . . . . . . . 2 9 9 6 7 7 1 . 5 6 6 1 . . . 5 7 10 9 8 7 Treads 12 | . 14 13 19 22 22 22 17 17 17 18 14 15 15 14 12 6 6 6 5 5 5 5 5 5 5 5 4 4 Device 2 | . . . . . . . . . . . . 7 7 . . 5 6 1 3 7 11 9 5 5 5 5 9 9 Storage 31 | . 28 28 28 33 18 22 18 22 36 36 32 38 38 38 33 33 33 33 31 35 35 35 31 33 36 36 33 28 Processor 1 | . . . . . . . . . . . . . . . . 2 . . . . . . . 2 5 10 12 7 Hackware 5 | . . . . . . . . . . . 7 7 7 7 21 13 6 6 11 6 5 5 9 7 4 5 4 10 Protection 7 | . . . 14 11 11 . 8 8 9 9 15 5 7 14 7 3 6 9 5 5 5 5 7 5 5 4 1 2 Energy Cannon 1 | . 7 18 1 . . . . . . . . . . . . . . . . . . . . . 2 2 1 2 Ballistic Gun 9 | . 4 3 12 22 21 22 15 9 1 9 9 5 . 12 12 7 13 8 9 3 . 3 5 . 4 5 5 1 Ballistic Cannon 2 | . . . . . . . . 4 16 6 4 6 7 1 . . . . . 5 5 4 5 . . . . . Naked Turns . | . . . . . . . . . . . . . . . . . . . . . . . . . . . . . Heaviest Build 309 | 12 59 59 83 84 166 171 198 228 140 140 145 143 137 140 158 187 201 218 251 254 254 259 274 291 309 284 281 271 Greatest Support 70 | 20 20 10 40 40 40 40 40 40 42 42 40 40 40 48 48 70 70 70 70 70 70 70 70 70 70 70 70 70 Greatest Overweight (x) 9 | 1 5 5 7 2 4 4 9 5 6 3 6 3 3 6 7 3 2 3 3 3 3 3 3 4 4 4 4 6 Average Overweight (x) 3 | . 4 5 2 1 2 4 4 3 3 3 3 3 3 2 2 1 2 2 3 3 3 3 3 3 3 3 3 3 Largest Inventory Capacity 64 | 8 18 18 24 24 44 44 44 64 32 32 38 38 38 38 38 38 40 42 50 50 50 50 50 58 58 58 58 58 Average Capacity 40 | 7 16 18 21 24 31 44 44 41 30 32 33 38 38 38 38 38 38 41 46 50 50 50 50 53 58 58 58 52 Most Carried 58 | 8 18 18 24 24 44 44 44 44 32 32 38 38 38 38 38 38 40 42 45 50 50 50 50 58 58 58 58 56 Average Carried 38 | 4 14 16 20 23 27 43 43 38 30 31 33 37 38 36 37 37 38 41 43 47 49 48 49 53 56 57 54 47 Final Capacity 58 | 8 18 18 24 24 44 44 44 30 32 32 38 38 38 38 38 38 40 42 50 50 50 50 50 58 58 58 58 4 Final Carried 58 | 8 18 16 24 24 44 44 44 30 32 32 37 38 38 38 38 38 40 42 42 50 50 49 50 58 58 58 53 4 Class Distribution -------------------- 37% | Botlord-Mutant 37% | Hauler-Mutant 12% | Bothacker-Mutant 6% | Scavenger-Mutant 6% | Mutant Dominant Class ---------------- Mutant | -10/Materials Mutant | -10/Mines Scavenger-Mutant | -9/Materials Scavenger-Mutant | -9/Mines Hauler-Mutant | -9/Exiles Hauler-Mutant | -8/Mines Hauler-Mutant | -8/Materials Hauler-Mutant | -8/Garrison Hauler-Mutant | -8/Materials Hauler-Mutant | -8/Garrison Hauler-Mutant | -7/Factory Hauler-Mutant | -7/Garrison Hauler-Mutant | -7/Factory Bothacker-Mutant | -7/Garrison Botlord-Mutant | -6/Factory Bothacker-Mutant | -6/Waste Bothacker-Mutant | -6/Factory Bothacker-Mutant | -6/Garrison Botlord-Mutant | -5/Factory Botlord-Mutant | -5/Garrison Botlord-Mutant | -5/Factory Botlord-Mutant | -5/Garrison Botlord-Mutant | -4/Factory Botlord-Mutant | -4/Waste Botlord-Mutant | -4/Factory Botlord-Mutant | -4/Garrison Botlord-Mutant | -3/Research Botlord-Mutant | -3/Testing Resources | -11 -10 -10 -9 -9 -9 -8 -8 -8 -8 -8 -7 -7 -7 -7 -6 -6 -6 -6 -5 -5 -5 -5 -4 -4 -4 -4 -3 -3 ----------- Run | Scr Mat Min Mat Min Exi Min Mat Gar Mat Gar Fac Gar Fac Gar Fac Was Fac Gar Fac Gar Fac Gar Fac Was Fac Gar Res Tes Matter Collected 17284 | 270 406 157 739 20 1006 134 757 805 1107 590 1156 484 . 564 1137 494 154 527 701 352 57 833 . 353 1476 919 729 1357 Remotely 1714 | . . . . . . . . . . . . . . . . . . . . . . 537 . . 343 255 . 579 Salvage Created 30598 | 123 749 474 1353 . 651 132 1920 1005 1441 517 1535 578 . 642 1543 1316 179 317 995 240 79 593 42 2072 5344 1596 2046 3116 Parts 1448 | 10 40 22 126 . 61 13 107 32 87 39 85 25 . 30 81 33 7 19 38 8 2 20 1 58 190 64 121 129 Haulers Intercepted 6 | . 1 . 1 . . . 1 . 2 . . . . . . . . . 1 . . . . . . . . . Recyclers Shooed 23 | . . . . . . . 5 . 2 . . . . . 1 . 1 . 2 . . . . . 4 . 6 2 Parts Field Recycled . | . . . . . . . . . . . . . . . . . . . . . . . . . . . . . Retrieved Matter . | . . . . . . . . . . . . . . . . . . . . . . . . . . . . . Parts Self-Destructed . | . . . . . . . . . . . . . . . . . . . . . . . . . . . . . Prevented . | . . . . . . . . . . . . . . . . . . . . . . . . . . . . . Kills | -11 -10 -10 -9 -9 -9 -8 -8 -8 -8 -8 -7 -7 -7 -7 -6 -6 -6 -6 -5 -5 -5 -5 -4 -4 -4 -4 -3 -3 ------- Run | Scr Mat Min Mat Min Exi Min Mat Gar Mat Gar Fac Gar Fac Gar Fac Was Fac Gar Fac Gar Fac Gar Fac Was Fac Gar Res Tes Combat Hostiles Destroyed 517 | . 14 13 49 . 6 3 32 22 29 17 35 12 . 21 25 4 3 9 19 9 1 12 . 6 78 24 24 50 Melee 3 | . . . . . 1 . . . . . . . . . . . . . . . . . . . 2 . . . Guns 233 | . 11 . 17 . 2 3 15 13 . 5 25 1 . 8 25 4 3 7 11 2 . 5 . . 21 20 16 19 Cannons 116 | . 2 1 2 . . . . 5 23 5 7 3 . 2 . . . . 3 2 1 4 . 6 26 1 5 18 AOE 142 | . 1 11 29 . 3 . 16 4 6 7 3 8 . 11 . . . 2 5 5 . 3 . . 13 . 3 12 Classes Destroyed 25 | 2 6 . 4 . 3 1 . 2 . . 1 . . . . 1 . . . 1 . 1 . . 1 . 1 1 Worker 19 | . 1 . 1 . . . 2 . 3 . 2 . . . . . . . 1 . . . . . 1 . . 8 Builder 22 | . . . 6 . . . 2 . 2 . 1 . . . . . . . . . . . . . 2 . 3 6 Tunneler 5 | 2 . 1 1 . . . . . . . . . . . . . . . . . . . . . . . 1 . Hauler 6 | . 1 . 1 . . . 1 . 2 . . . . . . . . . 1 . . . . . . . . . Recycler 23 | 1 1 . 2 . . 1 6 . 2 . . . . . 2 . . . . . . . . . 4 . 2 2 Mechanic 2 | . . . . . . . . . . . . . . . . . . . . . . . . . . . 1 1 Operator 2 | . 1 . 1 . . . . . . . . . . . . . . . . . . . . . . . . . Turret 1 | . . . . . 1 . . . . . . . . . . . . . . . . . . . . . . . Watcher 21 | . 2 . 4 . . . 3 . 3 . . . . . 2 . . . . . . . 1 . 5 . . 1 Swarmer 125 | . 3 6 30 . . 2 12 3 4 8 3 4 . 3 7 . . 4 . 5 . 3 . . 5 7 4 12 Saboteur 1 | . . . . . . . . . . . . . . . . . . . . . . . . . 1 . . . Grunt 203 | . 11 7 11 . . . 12 8 15 6 19 5 . 14 9 . 1 1 11 3 . 5 . . 25 10 4 26 Brawler 16 | . . . . . . . . 1 2 . 1 . . 1 1 . . 2 1 . . 2 . . 4 . . 1 Duelist 10 | . . . 1 . . . . . . . . . . 2 . . . 1 . . . 1 . . 4 . . 1 Protector 6 | . . . 1 . . . . 1 . . 1 . . . 1 . . . . . . . . . 2 . . . Researcher 5 | . . . . . . . . . . . . . . . . . . . . . . . . . . . . 5 Sentry 45 | . . . 6 . . . 8 6 7 3 5 . . . 2 . 1 . . . 1 1 . . 2 2 1 . Demolisher 3 | . . . . . . . . 1 . . . . . . . . . . . . . . . . 2 . . . Specialist 1 | . . . . . . . . . . . . . . . . . . . . 1 . . . . . . . . Hunter 38 | . . . . . . 1 . 2 1 . 1 3 . 1 2 . . . 1 . . . . . 8 4 6 8 Programmer 44 | . . . . . . . . . . . 5 . . . 3 . 1 1 6 . . . . . 17 . 9 2 Behemoth 2 | . . . . . . . . . . . . . . . . . . . . . . 1 . . . 1 . . Compactor 10 | . . . . . . . . . . . . . . . . 4 . . . . . . . 6 . . . . Zionite 8 | . . . . . 8 . . . . . . . . . . . . . . . . . . . . . . . Assembled 13 | . . . . . 5 . . . . . . . . . . . . . . . . . . . 8 . . . Martyr 2 | . . . . . . . . . . . . . . . . 2 . . . . . . . . . . . . Best Kill Streak 22 | 3 4 3 16 . 5 2 9 6 10 6 3 5 . 9 4 1 1 3 7 7 1 3 1 1 10 9 6 22 Combat Bots Only 15 | . 4 3 15 . 4 2 6 6 6 6 3 5 . 9 4 1 1 3 6 7 1 3 . 1 10 9 4 14 Max Kills in Single Turn 6 | 1 1 2 4 . 1 1 6 2 4 4 2 3 . 4 2 1 1 1 2 3 1 2 1 1 2 2 3 6 Gunslinging 1 | . . . 1 . . . . . . . . . . . 1 . . . . . . . . . . 1 . 1 Exploded 4 | . 1 2 4 . 1 . 4 2 2 4 2 3 . 4 . . . 1 2 3 . 1 . . 2 . 3 3 Melee 1 | . . . . . 1 . . . . . . . . . . . . . . . . . . . 1 . . . Uniques/NPCs Destroyed 5 | . . . . . 4 1 . . . . . . . . . . . . . . . . . . . . . . 8R-AWN (-9/Exiles) EX-DEC (-9/Exiles) EX-BIN (-9/Exiles) EX-HEX (-9/Exiles) ME-RLN (-8/Mines) Combat | -11 -10 -10 -9 -9 -9 -8 -8 -8 -8 -8 -7 -7 -7 -7 -6 -6 -6 -6 -5 -5 -5 -5 -4 -4 -4 -4 -3 -3 -------- Run | Scr Mat Min Mat Min Exi Min Mat Gar Mat Gar Fac Gar Fac Gar Fac Was Fac Gar Fac Gar Fac Gar Fac Was Fac Gar Res Tes Damage Taken 45766 | . 640 341 1316 26 1298 236 1320 2486 2221 714 2820 663 . 1178 2445 . 263 913 1052 582 61 2031 . 42 7635 3395 2442 9646 Core 3692 | . 127 100 142 16 128 45 75 217 108 59 282 154 . 32 309 . 8 60 22 30 . 19 . . 248 193 277 1041 Absorbed by Shields 585 | . . . . . 72 2 . 9 . . . . . . . . . 60 . 84 . 10 . . . 219 47 82 Reduced by Siege Mode 1287 | . . . . . . . . . . . . . . . . . . . 5 . . 63 . . 232 167 86 734 Core Remaining (%) 47 | 100 . 9 . . . 17 . . . 16 . . . 33 . . . 55 . . . 92 . . . 61 . . Volleys Fired 1856 | 5 70 25 90 . 105 11 98 82 98 36 120 20 . 47 105 77 13 40 68 26 3 70 3 112 222 74 78 158 Largest 2 | 2 2 2 2 . 2 2 2 2 2 2 2 2 . 2 2 2 2 2 2 2 1 2 2 1 2 2 2 2 Hottest 225 | 80 112 112 126 . 46 46 46 88 88 83 69 80 . 69 58 58 60 60 87 87 57 176 90 110 176 176 176 225 Shots Fired 3039 | 8 112 34 150 . 190 21 168 142 187 70 225 40 . 83 204 82 26 66 126 44 3 124 6 112 325 145 139 207 Gun 2006 | 8 97 6 111 . 178 21 143 89 17 36 159 15 . 62 199 75 26 55 114 18 . 53 3 . 167 131 110 113 Cannon 712 | . 15 13 12 . . . . 42 161 31 58 18 . 12 . . . . 3 20 2 55 3 14 142 14 21 76 Launcher 164 | . . 15 27 . 9 . 25 11 9 3 2 7 . 9 . . . 2 6 4 . 7 . . 14 . 1 13 Special 157 | . . . . . 3 . . . . . 6 . . . 5 7 . 9 3 2 1 9 . 98 2 . 7 5 Kinetic 2266 | . 32 6 76 . 178 21 143 131 178 67 217 33 . 74 199 75 26 55 117 38 2 100 6 . 190 131 110 61 Thermal 254 | . 17 . 23 . 3 . . . . . . . . . . . . . . . . . . 101 8 . . 102 Explosive 88 | . . 2 21 . . . . . . . 2 7 . 9 . . . 2 6 4 . 7 . . 14 . 1 13 Electromagnetic 368 | 8 63 26 30 . 9 . 25 11 9 3 . . . . . . . . . . . 8 . 4 111 14 21 26 Robot Hit Streak 46 | 4 11 11 18 . 25 6 23 14 12 17 18 8 . 8 15 31 11 9 15 9 12 14 2 39 41 46 22 42 Robot Miss Streak 6 | 1 4 4 6 . 4 1 4 2 4 2 3 2 . 2 3 3 4 3 4 4 . 3 1 2 3 2 2 2 Penetration Max 3 | . . . . . . . . . . . . . . 1 1 1 . . 1 . . 1 . . 1 2 2 3 Secondary Targets 31 | . 1 . 3 . . . . 1 . . 2 . . 2 3 . . 2 1 . . . . . 4 5 3 4 Max Gunslinging Chain 1 | . 1 . 1 . . . . 1 . . 1 . . 1 1 . . 1 1 . . . . . 1 1 1 1 Capacitor 32 | . . . . . . . . . . . . . . . . . . . . . . . . . . . 6 26 Shots Hit Robots 2307 | 6 69 20 93 . 138 15 131 118 126 52 186 41 . 57 141 74 17 44 88 26 3 78 4 97 286 121 104 172 Core Hits 1324 | 4 30 22 86 . 46 7 89 54 75 25 114 24 . 46 69 17 8 22 76 18 1 35 2 17 160 66 66 145 Critical Hits 203 | . . . . . 3 . 2 1 2 1 1 . . . 2 5 . . 3 5 1 21 . 20 34 20 40 42 Critical Kills 67 | . . . . . 1 . 1 1 1 . . . . . . 1 . . 3 1 1 2 . 5 11 4 16 19 Critical Parts Destroyed 103 | . . . . . 1 . 1 . 1 1 1 . . . 2 1 . . . 4 . 12 . 4 20 15 20 20 Melee Attacks 95 | . . . . . 1 . 5 22 . 7 1 14 . . . 8 . 7 . . . . . . 16 2 2 10 Impact . | . . . . . . . . . . . . . . . . . . . . . . . . . . . . . Slashing 75 | . . . . . 1 . 5 22 . 7 1 14 . . . 8 . 7 . . . . . . 10 . . . Piercing 20 | . . . . . . . . . . . . . . . . . . . . . . . . . 6 2 2 10 Sneak Attacks 7 | . . . . . . . 3 . . . . . . . . 3 . . . . . . . . . . 1 . Combat Hostiles . | . . . . . . . . . . . . . . . . . . . . . . . . . . . . . Follow-up Attacks . | . . . . . . . . . . . . . . . . . . . . . . . . . . . . . Damage Inflicted 71160 | 113 1086 994 3591 . 2111 219 3305 3524 3074 1326 4150 1989 . 2613 3053 1829 503 1342 3366 970 43 2320 81 1788 12536 3001 2989 9244 Guns 30989 | 69 788 53 1072 . 1921 182 1588 977 198 543 2572 170 . 765 3040 1503 503 863 1920 291 . 1006 48 . 4272 2516 1827 2302 Cannons 15210 | . 105 263 83 . . . . 566 2271 500 1028 153 . 210 . . . . 88 273 43 845 33 332 4676 485 709 2547 Explosions 19376 | 44 193 678 2415 . 117 . 1362 472 566 283 537 583 . 1638 . . . 479 1358 406 . 469 . . 3127 . 332 4317 Melee 3914 | . . . . . 52 . 355 1509 . . . 1083 . . . 326 . . . . . . . . 430 . 81 78 Ramming 194 | . . . 21 . . 37 . . 39 . 13 . . . 13 . . . . . . . . . 31 . 40 . Kinetic 35038 | . 181 53 687 . 1921 182 1588 1543 2469 1043 3600 323 . 975 3040 1503 503 863 2008 564 43 1691 81 . 4753 2516 1827 1081 Thermal 6939 | 44 346 216 358 . 21 . 123 . 67 102 333 . . . . . . . . . . . . 1776 505 . . 3048 Explosive 14488 | . . 140 2112 . . . . . . . 204 583 . 1638 . . . 479 1034 406 . 469 . . 2774 . 332 4317 Electromagnetic 10587 | 69 559 585 413 . 117 . 1239 472 499 181 . . . . . . . . 324 . . 160 . 12 4043 485 709 720 Impact . | . . . . . . . . . . . . . . . . . . . . . . . . . . . . . Slashing 3554 | . . . . . 52 . 355 1509 . . . 1083 . . . 326 . . . . . . . . 229 . . . Piercing 360 | . . . . . . . . . . . . . . . . . . . . . . . . . 201 . 81 78 Highest Corruption 23 | . . . . . . 1 . . 3 3 3 3 . . 2 2 . . . . . . . . 3 3 13 23 Average Corruption 4 | . . . . . . 1 . . 2 3 1 2 . . 1 1 . . . . . . . . 1 1 10 15 Corruption Purged 9 | . . . . . . . . . . . . 3 . . . 2 . . . . . . . . . 3 1 . Effects 217 | . . . . . . 2 . . 11 21 16 4 . . 3 12 . . . . . . . . 15 1 39 93 Message Errors 41 | . . . . . . 1 . . 2 6 8 . . . 2 4 . . . . . . . . 4 1 5 8 Matter Fused 33 | . . . . . . . . . 4 5 1 . . . . . . . . . . . . . . . 9 14 Heat Flow Errors 13 | . . . . . . . . . 1 1 1 . . . . 1 . . . . . . . . 1 . 4 4 Energy Discharges 23 | . . . . . . 1 . . 2 5 3 1 . . . 3 . . . . . . . . 3 . . 5 Data Loss (minor) 14 | . . . . . . . . . . 2 2 . . . 1 1 . . . . . . . . 4 . 2 2 Data Loss (major) 5 | . . . . . . . . . . . . . . . . . . . . . . . . . . . 3 2 Misfires 3 | . . . . . . . . . . . . . . . . . . . . . . . . . . . . 3 Misdirections 8 | . . . . . . . . . . . . . . . . . . . . . . . . . . . 4 4 Targeting Errors 67 | . . . . . . . . . 1 1 . 3 . . . 3 . . . . . . . . 3 . 10 46 Weapon Failures 10 | . . . . . . . . . 1 1 1 . . . . . . . . . . . . . . . 2 5 Overload Shots 4 | . . . . . . . . . . . . . . . . . . . . . . . . . . . . 4 Overflow Damage 1793 | . . 28 72 . . . 152 90 40 4 108 241 . 32 . 46 . 12 15 29 . 53 . . 364 2 32 473 Projectiles 374 | . . 3 . . . . . . 30 4 26 . . . . . . . . 29 . 23 . . 145 2 9 103 Explosions 939 | . . 25 72 . . . 56 . 10 . 82 . . 32 . . . 12 15 . . 30 . . 212 . 23 370 Melee 480 | . . . . . . . 96 90 . . . 241 . . . 46 . . . . . . . . 7 . . . Knockbacks 81 | . . . . . . . . 2 31 5 20 2 . 3 . . . . . 6 . 5 . . 1 . . 6 Impact 1 | . . . . . . . . . 1 . . . . . . . . . . . . . . . . . . . Kinetic 73 | . . . . . . . . 2 28 5 17 2 . 3 . . . . . 6 . 5 . . 1 . . 4 Secondary 7 | . . . . . . . . . 2 . 3 . . . . . . . . . . . . . . . . 2 Self-Inflicted Damage 1180 | . 77 59 88 . 34 . 55 . 64 27 . 23 . 140 . . . . 50 84 . 66 . . 231 . . 182 Shots 47 | . 2 4 4 . 3 . 3 . 3 3 . 1 . 3 . . . . 5 3 . 3 . . 6 . . 4 Rammed 20 | . . . 3 . . 1 . . 6 . 2 . . . 1 . 1 . . . . . . . 2 . 4 . Targets Rammed 21 | . . . 4 . . 1 . . 6 . 2 . . . 1 . 1 . . . . . . . 2 . 4 . Kicked . | . . . . . . . . . . . . . . . . . . . . . . . . . . . . . Crushed 1 | . . . 1 . . . . . . . . . . . . . . . . . . . . . . . . . Highest Temperature 514 | 6 90 107 514 . 20 2 117 332 372 165 89 20 . 65 247 98 . 173 56 16 . 111 . 256 413 403 225 405 Average Temperature 72 | 3 30 34 121 . 8 2 28 87 103 68 22 8 . 19 62 32 . 49 20 9 . 40 . 135 99 136 92 72 Received Heat Transfer 8830 | . 240 126 297 15 . . 513 798 918 261 954 54 . 342 507 . 42 230 369 147 9 451 . . 759 389 78 1331 Effects 17 | . . . 7 . . . . 3 . . . . . . . . . . . . . . . . 5 1 . 1 Shutdowns 6 | . . . 2 . . . . 1 . . . . . . . . . . . . . . . . 2 . . 1 Energy Bleed 3 | . . . 1 . . . . 1 . . . . . . . . . . . . . . . . 1 . . . Interference 3 | . . . 3 . . . . . . . . . . . . . . . . . . . . . . . . . Short Circuit 3 | . . . 1 . . . . 1 . . . . . . . . . . . . . . . . . 1 . . Damage (major) 2 | . . . . . . . . . . . . . . . . . . . . . . . . . 2 . . . Siege Activations 44 | . . . . . . . . . . . . . . . . . . 1 3 1 . 5 . . 16 8 6 4 Total Turns 1087 | . . . . . . . . . . . . . . . . . . 8 38 11 . 118 . . 351 217 98 246 Longest Duration 96 | . . . . . . . . . . . . . . . . . . 8 18 11 . 44 . . 58 66 39 96 Robots Corrupted 25 | . . 1 1 . . . 1 . . . . . . . . . . . . . . . . . 17 3 1 1 Combat Hostiles 23 | . . 1 1 . . . 1 . . . . . . . . . . . . . . . . . 16 3 . 1 Parts Fried 82 | . 4 4 . . . . 7 2 . . . . . . . . . . . . . 2 . . 41 7 8 7 Impact Corruptions 1 | . . . . . . . . . . . . . . . . . . . . . . . . . 1 . . . Robots Melted . | . . . . . . . . . . . . . . . . . . . . . . . . . . . . . Combat Hostiles . | . . . . . . . . . . . . . . . . . . . . . . . . . . . . . Parts Melted 11 | . 2 . 1 . . . . . . . . . . . . . 1 . . . . 1 . . 3 . . 3 Heat Transferred 8901 | 50 620 250 729 . 18 . 250 . 100 100 200 . . . . . . . . . . . . 3456 275 . . 2853 Parts Sabotaged . | . . . . . . . . . . . . . . . . . . . . . . . . . . . . . Parts Stolen . | . . . . . . . . . . . . . . . . . . . . . . . . . . . . . Parts Stripped . | . . . . . . . . . . . . . . . . . . . . . . . . . . . . . Power Chain Reactions 28 | 1 4 5 2 . . . 9 . 1 5 . . . . . . . . . . . . . . 1 . . . Missiles Intercepted . | . . . . . . . . . . . . . . . . . . . . . . . . . . . . . Alert | -11 -10 -10 -9 -9 -9 -8 -8 -8 -8 -8 -7 -7 -7 -7 -6 -6 -6 -6 -5 -5 -5 -5 -4 -4 -4 -4 -3 -3 ------- Run | Scr Mat Min Mat Min Exi Min Mat Gar Mat Gar Fac Gar Fac Gar Fac Was Fac Gar Fac Gar Fac Gar Fac Was Fac Gar Res Tes Peak Influence 1625 | 15 361 221 1074 376 . 130 629 1113 1053 1088 869 499 261 743 434 110 689 809 424 643 446 721 389 145 1625 1554 873 1180 Initial 999 | . 9 86 33 376 . . . 408 542 684 571 119 261 182 389 110 . 464 424 279 337 312 378 136 . 999 873 226 Average 484 | 5 142 136 573 283 . 82 209 859 802 921 311 327 261 515 335 26 360 669 231 505 386 486 379 28 781 1259 392 545 Maximum Alert Level 5 | . 1 1 3 1 . . 2 4 3 3 3 2 1 3 2 . 2 3 2 2 2 3 1 . 5 4 3 4 Low Security (%) 27 | 100 66 59 21 15 . 100 52 . . . 56 21 . 8 . 100 27 . 38 . . . . 100 9 . 19 3 Level 1 23 | . 33 40 18 84 . . 34 . . . . 50 100 37 87 . 24 . 49 26 83 45 100 . 13 . 30 53 Level 2 20 | . . . 18 . . . 12 17 15 18 38 28 . 19 12 . 47 53 12 73 16 40 . . 20 . 35 5 Level 3 22 | . . . 41 . . . . 78 84 81 4 . . 35 . . . 46 . . . 13 . . 36 36 14 22 Level 4 5 | . . . . . . . . 3 . . . . . . . . . . . . . . . . 18 63 . 15 Level 5 . | . . . . . . . . . . . . . . . . . . . . . . . . . 1 . . . High Security . | . . . . . . . . . . . . . . . . . . . . . . . . . . . . . Max Security . | . . . . . . . . . . . . . . . . . . . . . . . . . . . . . Squads Dispatched 85 | . 4 . 7 . . . 5 . 6 . 10 . . . 4 . 5 . 8 . . . 1 . 15 . 5 15 Investigation 9 | . 2 . 1 . . . 2 . 1 . . . . . . . . . 1 . . . . . 2 . . . Extermination 24 | . . . . . . . . . . . 5 . . . 2 . 3 . 3 . . . 1 . 6 . 3 1 Reinforcement 36 | . 2 . 5 . . . 2 . 3 . 4 . . . 1 . 1 . 4 . . . . . 3 . 2 9 Assault 10 | . . . 1 . . . . . 1 . 1 . . . 1 . . . . . . . . . 4 . . 2 Garrison 6 | . . . . . . . 1 . 1 . . . . . . . 1 . . . . . . . . . . 3 Intercept . | . . . . . . . . . . . . . . . . . . . . . . . . . . . . . Construction Impeded 10 | . . . 2 . . . 1 . . . 1 . . . 1 . . . 1 . . . . . 1 . 1 2 Haulers Reinforced 4 | . . . . . . . . . . . 2 . . . . . . . 1 . . . . . 1 . . . Alert ID Control Effect 12 | . . . . . . . . . . . . . . . . . . 9 . 2 1 . . . . . . . Stealth | -11 -10 -10 -9 -9 -9 -8 -8 -8 -8 -8 -7 -7 -7 -7 -6 -6 -6 -6 -5 -5 -5 -5 -4 -4 -4 -4 -3 -3 --------- Run | Scr Mat Min Mat Min Exi Min Mat Gar Mat Gar Fac Gar Fac Gar Fac Was Fac Gar Fac Gar Fac Gar Fac Was Fac Gar Res Tes Distress Signals 14 | . . . 2 . . . 3 . . . 1 . . . . . 2 . . . 1 . . . 4 . . 1 Communications Jammed 62 | . . . . . . . . . . . . . . . . . . . . . . . . . 8 . . 54 Distress Signals 62 | . . . . . . . . . . . . . . . . . . . . . . . . . 8 . . 54 Times Spotted 797 | . 31 18 66 5 21 6 44 25 55 25 48 12 . 22 38 6 20 24 35 16 5 31 2 6 97 31 25 83 Peak Tracking Total 11 | . 6 3 9 3 9 3 6 5 5 9 6 5 . 10 7 5 4 4 8 7 2 5 2 1 8 11 4 11 Tactical Retreats 62 | . 3 4 2 . 3 . 3 2 7 7 4 . . 1 2 . . . 4 4 . 8 . . 2 2 . 4 Traps | -11 -10 -10 -9 -9 -9 -8 -8 -8 -8 -8 -7 -7 -7 -7 -6 -6 -6 -6 -5 -5 -5 -5 -4 -4 -4 -4 -3 -3 ------- Run | Scr Mat Min Mat Min Exi Min Mat Gar Mat Gar Fac Gar Fac Gar Fac Was Fac Gar Fac Gar Fac Gar Fac Was Fac Gar Res Tes Traps Triggered 62 | . . . 2 . 1 1 2 13 2 9 1 4 . 6 3 . 1 6 1 . . 1 2 . 2 5 . . Indirectly 5 | . . . . . . . . 5 . . . . . . . . . . . . . . . . . . . . Trap Hack Attempts . | . . . . . . . . . . . . . . . . . . . . . . . . . . . . . Triggered . | . . . . . . . . . . . . . . . . . . . . . . . . . . . . . Disarmed . | . . . . . . . . . . . . . . . . . . . . . . . . . . . . . Reprogrammed . | . . . . . . . . . . . . . . . . . . . . . . . . . . . . . Reused . | . . . . . . . . . . . . . . . . . . . . . . . . . . . . . Traps Extracted . | . . . . . . . . . . . . . . . . . . . . . . . . . . . . . Installed 2 | . . . . . 1 1 . . . . . . . . . . . . . . . . . . . . . . Triggered 1 | . . . . . . . . . . . . . . . . . . . . . . . . . . . . 1 Exploded 3 | . . . . . 3 . . . . . . . . . . . . . . . . . . . . . . . Machines | -11 -10 -10 -9 -9 -9 -8 -8 -8 -8 -8 -7 -7 -7 -7 -6 -6 -6 -6 -5 -5 -5 -5 -4 -4 -4 -4 -3 -3 ---------- Run | Scr Mat Min Mat Min Exi Min Mat Gar Mat Gar Fac Gar Fac Gar Fac Was Fac Gar Fac Gar Fac Gar Fac Was Fac Gar Res Tes Machines Disabled 80 | . 1 3 3 . 10 . 3 2 5 1 9 1 . 2 1 . 2 5 4 2 . 3 . . 11 2 1 9 Max in Single Turn 9 | . 1 1 1 . 2 . 2 1 2 1 9 1 . 1 1 . 1 1 2 1 . 1 . . 1 1 1 2 Garrison Access 2 | . . . . . . . . . . . 1 . . . 1 . . . . . . . . . . . . . Garrison Relay 16 | . . . . . . . . 2 . 1 . 1 . 2 . . . 4 . 2 . 2 . . . 2 . . Machines Sabotaged . | . . . . . . . . . . . . . . . . . . . . . . . . . . . . . Garrisons Compromised . | . . . . . . . . . . . . . . . . . . . . . . . . . . . . . Overloaded Fab Kills . | . . . . . . . . . . . . . . . . . . . . . . . . . . . . . Fab Network Shutdowns . | . . . . . . . . . . . . . . . . . . . . . . . . . . . . . Hacking | -11 -10 -10 -9 -9 -9 -8 -8 -8 -8 -8 -7 -7 -7 -7 -6 -6 -6 -6 -5 -5 -5 -5 -4 -4 -4 -4 -3 -3 --------- Run | Scr Mat Min Mat Min Exi Min Mat Gar Mat Gar Fac Gar Fac Gar Fac Was Fac Gar Fac Gar Fac Gar Fac Was Fac Gar Res Tes Machines Accessed 71 | . 8 1 4 . 2 . 7 . 7 . 7 . 2 . 5 . 7 . 7 . 3 . . . 8 . . 3 Terminals 35 | . 6 1 3 . . . 4 . 3 . . . 1 . 2 . 2 . 4 . 1 . . . 6 . . 2 Fabricators 8 | . . . . . . . . . . . 3 . . . 1 . 3 . . . 1 . . . . . . . Repair Stations 3 | . . . . . . . . . 1 . 1 . . . . . . . . . . . . . 1 . . . Recycling Units 4 | . 2 . . . . . 1 . 1 . . . . . . . . . . . . . . . . . . . Scanalyzers 9 | . . . 1 . . . 1 . 1 . 1 . . . 1 . 1 . 2 . . . . . . . . 1 Garrison Access 10 | . . . . . . . 1 . 1 . 2 . 1 . 1 . 1 . 1 . 1 . . . 1 . . . Total Hacks 175 | . 19 2 8 . 2 . 25 . 14 . 18 . 4 . 11 . 21 . 18 . 10 . . . 17 . . 6 Successful 102 | . 13 1 5 . 2 . 13 . 8 . 13 . 1 . 4 . 17 . 10 . 5 . . . 6 . . 4 Failed 73 | . 6 1 3 . . . 12 . 6 . 5 . 3 . 7 . 4 . 8 . 5 . . . 11 . . 2 Catastrophic 12 | . 2 . . . . . 2 . . . . . . . 1 . . . 1 . 1 . . . 4 . . 1 Database Lockouts . | . . . . . . . . . . . . . . . . . . . . . . . . . . . . . Manual 42 | . 13 2 3 . 1 . 14 . 2 . . . . . . . 1 . 4 . . . . . 2 . . . Terminals 91 | . 17 2 6 . . . 18 . 7 . . . 3 . 4 . 4 . 10 . 4 . . . 12 . . 4 Fabricators 19 | . . . . . . . . . . . 5 . . . 3 . 6 . . . 5 . . . . . . . Repair Stations 8 | . . . . . . . . . 2 . 3 . . . . . . . . . . . . . 3 . . . Recycling Units 5 | . 2 . . . . . 1 . 2 . . . . . . . . . . . . . . . . . . . Scanalyzers 34 | . . . 2 . . . 4 . 2 . 7 . . . 3 . 8 . 6 . . . . . . . . 2 Garrison Access 16 | . . . . . . . 2 . 1 . 3 . 1 . 1 . 3 . 2 . 1 . . . 2 . . . Terminal Hacks 29 | . 6 1 3 . 2 . 3 . 2 . . . . . 2 . 2 . 3 . 1 . . . 2 . . 2 Record 1 | . . . . . 1 . . . . . . . . . . . . . . . . . . . . . . . Part Schematic 5 | . 1 1 . . . . 1 . . . . . . . 1 . . . . . . . . . . . . 1 Prototype ID Bank 10 | . 4 . 1 . . . . . 1 . . . . . 1 . 1 . 1 . 1 . . . . . . . Open Door 1 | . . . . . . . . . . . . . . . . . . . . . . . . . . . . 1 Unreport Threat 1 | . . . . . . . . . . . . . . . . . . . . . . . . . 1 . . . Locate Traps 5 | . . . 1 . . . . . 1 . . . . . . . 1 . 1 . . . . . 1 . . . Hauler Manifests 4 | . 1 . 1 . . . 1 . . . . . . . . . . . 1 . . . . . . . . . Zone Layout 1 | . . . . . . . 1 . . . . . . . . . . . . . . . . . . . . . EX-Prototype ID Bank 1 | . . . . . 1 . . . . . . . . . . . . . . . . . . . . . . . Fabricator Hacks 10 | . . . . . . . . . . . 2 . . . . . 5 . . . 3 . . . . . . . Load Schematic 4 | . . . . . . . . . . . 1 . . . . . 2 . . . 1 . . . . . . . Build 6 | . . . . . . . . . . . 1 . . . . . 3 . . . 2 . . . . . . . Repair Station Hacks 5 | . . . . . . . . . 2 . 2 . . . . . . . . . . . . . 1 . . . Scan Component 3 | . . . . . . . . . 1 . 1 . . . . . . . . . . . . . 1 . . . Repair 2 | . . . . . . . . . 1 . 1 . . . . . . . . . . . . . . . . . Recycling Unit Hacks . | . . . . . . . . . . . . . . . . . . . . . . . . . . . . . Scanalyzer 26 | . . . 2 . . . 3 . 2 . 6 . . . 1 . 7 . 3 . . . . . . . . 2 Insert Component 11 | . . . 1 . . . 1 . 1 . 2 . . . 1 . 2 . 2 . . . . . . . . 1 Analyze 15 | . . . 1 . . . 2 . 1 . 4 . . . . . 5 . 1 . . . . . . . . 1 Garrison Access Hacks 14 | . . . . . . . 1 . 1 . 3 . 1 . 1 . 2 . 2 . 1 . . . 2 . . . Unlock Access 8 | . . . . . . . 1 . 1 . 1 . 1 . . . 1 . 1 . 1 . . . 1 . . . Seal Access 2 | . . . . . . . . . . . 1 . . . 1 . . . . . . . . . . . . . Coupler Status 4 | . . . . . . . . . . . 1 . . . . . 1 . 1 . . . . . 1 . . . Unauthorized Hacks 18 | . 7 . . . . . 6 . 1 . . . . . . . 1 . 2 . . . . . 1 . . . Terminals 13 | . 5 . . . . . 5 . . . . . . . . . . . 2 . . . . . 1 . . . Track 4 | . 1 . . . . . 3 . . . . . . . . . . . . . . . . . . . . . Botnet 5 | . 3 . . . . . 1 . . . . . . . . . . . 1 . . . . . . . . . Operators 4 | . 1 . . . . . 1 . . . . . . . . . . . 1 . . . . . 1 . . . Fabricators . | . . . . . . . . . . . . . . . . . . . . . . . . . . . . . Repair Stations . | . . . . . . . . . . . . . . . . . . . . . . . . . . . . . Recycling Units 4 | . 2 . . . . . 1 . 1 . . . . . . . . . . . . . . . . . . . Tunnel 4 | . 2 . . . . . 1 . 1 . . . . . . . . . . . . . . . . . . . Scanalyzers . | . . . . . . . . . . . . . . . . . . . . . . . . . . . . . Garrison Access 1 | . . . . . . . . . . . . . . . . . 1 . . . . . . . . . . . Reprogram 1 | . . . . . . . . . . . . . . . . . 1 . . . . . . . . . . . Data Cores Recovered 1 | . 1 . . . . . . . . . . . . . . . . . . . . . . . . . . . Used . | . . . . . . . . . . . . . . . . . . . . . . . . . . . . . Hacking Detections 55 | . 6 1 3 . . . 5 . 4 . 6 . 1 . 4 . 6 . 7 . 3 . . . 7 . . 2 Full Trace Events 3 | . . . . . . . . . . . . . . . . . . . 1 . . . . . 2 . . . Feedback Events . | . . . . . . . . . . . . . . . . . . . . . . . . . . . . . Feedback Blocked . | . . . . . . . . . . . . . . . . . . . . . . . . . . . . . Robot Schematics Acquired . | . . . . . . . . . . . . . . . . . . . . . . . . . . . . . Robots Built 1 | . . . . . . . . . . . . . . . . . 1 . . . . . . . . . . . Matter 285 | . . . . . . . . . . . . . . . . . 285 . . . . . . . . . . . Time 76 | . . . . . . . . . . . . . . . . . 76 . . . . . . . . . . . Total Robot Build Rating 5 | . . . . . . . . . . . . . . . . . 5 . . . . . . . . . . . Part Schematics Acquired 13 | . 1 1 1 . . . 2 . 1 . 1 . . . 1 . 2 . 1 . . . . . . . . 2 Parts Built 5 | . . . . . . . . . . . 1 . . . . . 2 . . . 2 . . . . . . . Matter 576 | . . . . . . . . . . . 168 . . . . . 204 . . . 204 . . . . . . . Time 236 | . . . . . . . . . . . 84 . . . . . 50 . . . 102 . . . . . . . Total Part Build Rating 8 | . . . . . . . . . . . 4 . . . . . 2 . . . 2 . . . . . . . Parts Repaired 2 | . . . . . . . . . 1 . 1 . . . . . . . . . . . . . . . . . Time 124 | . . . . . . . . . 44 . 80 . . . . . . . . . . . . . . . . . Parts Recycled . | . . . . . . . . . . . . . . . . . . . . . . . . . . . . . Recycled Matter . | . . . . . . . . . . . . . . . . . . . . . . . . . . . . . Retrieved Matter . | . . . . . . . . . . . . . . . . . . . . . . . . . . . . . Retrieved Components . | . . . . . . . . . . . . . . . . . . . . . . . . . . . . . Parts Scanalyzed 11 | . . . 1 . . . 1 . 1 . 2 . . . 1 . 2 . 2 . . . . . . . . 1 Part Schematics Acquired 8 | . . . 1 . . . 1 . 1 . 1 . . . . . 2 . 1 . . . . . . . . 1 Parts Damaged 2 | . . . . . . . . . . . 1 . . . . . 1 . . . . . . . . . . . Bothacking | -11 -10 -10 -9 -9 -9 -8 -8 -8 -8 -8 -7 -7 -7 -7 -6 -6 -6 -6 -5 -5 -5 -5 -4 -4 -4 -4 -3 -3 ------------ Run | Scr Mat Min Mat Min Exi Min Mat Gar Mat Gar Fac Gar Fac Gar Fac Was Fac Gar Fac Gar Fac Gar Fac Was Fac Gar Res Tes Used RIF Installer 8 | . . . . . . . . 1 . 1 . 1 . 1 . . . 1 . 1 . 1 . . . 1 . . Hotswap 1 | . . . . . . . . . . . . . . . . . . . . . . . . . . 1 . . Signal Jammer 1 | . . . . . . . . . . . . . . . . . . . . 1 . . . . . . . . Patrol Navigation 1 | . . . . . . . . . . 1 . . . . . . . . . . . . . . . . . . Alert ID Control 1 | . . . . . . . . . . . . 1 . . . . . . . . . . . . . . . . Structural Interface 1 | . . . . . . . . . . . . . . 1 . . . . . . . . . . . . . . Program Shield 1 | . . . . . . . . . . . . . . . . . . . . . . 1 . . . . . . Autoassimilate 1 | . . . . . . . . . . . . . . . . . . 1 . . . . . . . . . . Robots Hacked 48 | . . . . . . . . . . . 1 . . . 5 6 . 9 2 3 2 8 . 6 2 . 1 3 Non-combat 6 | . . . . . . . . . . . 1 . . . 1 . . . 1 . . . . . . . 1 2 Combat 42 | . . . . . . . . . . . . . . . 4 6 . 9 1 3 2 8 . 6 2 . . 1 Autoassimilated 2 | . . . . . . . . . . . . . . . . . . . . 1 1 . . . . . . . Robot Hacks Applied 58 | . . . . . . . . . . . 5 . . . 5 7 . 9 3 2 1 8 . 7 2 . 5 4 parse_system 1 | . . . . . . . . . . . . . . . . . . . . . . 1 . . . . . . no_distress 1 | . . . . . . . . . . . . . . . . . . . . . . . . . . . . 1 find_chute 1 | . . . . . . . . . . . . . . . 1 . . . . . . . . . . . . . locate_stockpiles 1 | . . . . . . . . . . . . . . . . . . . . . . . . . . . . 1 purge_threat 13 | . . . . . . . . . . . 5 . . . . . . . 2 . . . . . . . 5 1 locate_prototypes 1 | . . . . . . . . . . . . . . . . . . . . . . . . . . . . 1 ignore_targets 14 | . . . . . . . . . . . . . . . . 7 . . . . . . . 7 . . . . reboot_propulsion 1 | . . . . . . . . . . . . . . . . . . . . . . 1 . . . . . . disable_weapons 1 | . . . . . . . . . . . . . . . . . . 1 . . . . . . . . . . reboot_system 4 | . . . . . . . . . . . . . . . . . . . . . 1 2 . . 1 . . . streamctrl_high 1 | . . . . . . . . . . . . . . . . . . . . . . 1 . . . . . . formatsys_high 19 | . . . . . . . . . . . . . . . 4 . . 8 1 2 . 3 . . 1 . . . Relay Couplers Released 68 | . . . . . . . . 8 . 3 . 3 . 9 . . . 19 . 9 . 7 . . . 10 . . Machine Destruction 68 | . . . . . . . . 8 . 3 . 3 . 9 . . . 19 . 9 . 7 . . . 10 . . Attached 19 | . . . . . . . . . . . 2 . . . 2 1 . 7 . 2 1 2 1 . 1 . . . Robots Rewired . | . . . . . . . . . . . . . . . . . . . . . . . . . . . . . Allies Hacked 6 | . . . . . . . . . . . . . . . . . 3 1 2 . . . . . . . . . Hacks Repelled . | . . . . . . . . . . . . . . . . . . . . . . . . . . . . . Allies | -11 -10 -10 -9 -9 -9 -8 -8 -8 -8 -8 -7 -7 -7 -7 -6 -6 -6 -6 -5 -5 -5 -5 -4 -4 -4 -4 -3 -3 -------- Run | Scr Mat Min Mat Min Exi Min Mat Gar Mat Gar Fac Gar Fac Gar Fac Was Fac Gar Fac Gar Fac Gar Fac Was Fac Gar Res Tes Total Allies 47 | . . . . 4 . . . . . . . . . . 4 19 2 8 1 3 1 4 . . 1 . . . Largest Group 18 | . . . . 4 . . . . . . . . . . 3 18 16 5 5 3 2 3 . . 1 . . . Highest-Rated Group 650 | . . . . 71 . . . . . . . . . . 78 650 549 184 184 147 98 97 . . 49 . . . Highest-Rated Ally 50 | . . . . 31 . . . . . . . . . . 29 50 46 47 49 49 49 43 . . 49 . . . Total Orders 2 | . . . . 1 . . . . . . . . . . . . . . . 1 . . . . . . . . STAY 2 | . . . . 1 . . . . . . . . . . . . . . . 1 . . . . . . . . Ally Attacks 388 | . . . . 33 . 8 . . . . . . . . 5 58 153 54 25 3 19 19 . . 11 . . . Total Damage 8176 | . . . . 396 . 237 . . . . . . . . 76 1081 3449 1050 621 95 415 344 . . 412 . . . Kills 56 | . . . . 5 . 3 . . . . . . . . . 2 28 9 3 2 2 2 . . . . . . Allies Corrupted 3 | . . . . . . . . . . . . . . . . . . 2 1 . . . . . . . . . Allies Melted . | . . . . . . . . . . . . . . . . . . . . . . . . . . . . . Turrets Deployed 1 | . . . . . . 1 . . . . . . . . . . . . . . . . . . . . . . Intel | -11 -10 -10 -9 -9 -9 -8 -8 -8 -8 -8 -7 -7 -7 -7 -6 -6 -6 -6 -5 -5 -5 -5 -4 -4 -4 -4 -3 -3 ------- Run | Scr Mat Min Mat Min Exi Min Mat Gar Mat Gar Fac Gar Fac Gar Fac Was Fac Gar Fac Gar Fac Gar Fac Was Fac Gar Res Tes Robot Analysis Total . | . . . . . . . . . . . . . . . . . . . . . . . . . . . . . Derelict Logs Recovered 4 | . . 2 . 2 . . . . . . . . . . . . . . . . . . . . . . . . Drone Launches . | . . . . . . . . . . . . . . . . . . . . . . . . . . . . . Drone Recoveries . | . . . . . . . . . . . . . . . . . . . . . . . . . . . . . Exploration | -11 -10 -10 -9 -9 -9 -8 -8 -8 -8 -8 -7 -7 -7 -7 -6 -6 -6 -6 -5 -5 -5 -5 -4 -4 -4 -4 -3 -3 ------------- Run | Scr Mat Min Mat Min Exi Min Mat Gar Mat Gar Fac Gar Fac Gar Fac Was Fac Gar Fac Gar Fac Gar Fac Was Fac Gar Res Tes Turns Passed 40785 | 82 971 885 1441 927 3396 498 1557 2079 1769 1247 3552 704 190 1650 2036 1648 1725 1771 1509 920 317 1034 318 1886 2539 2194 1000 940 Spaces Moved 15341 | 52 568 606 593 463 1333 179 469 718 596 502 1198 267 81 692 751 732 772 729 553 352 127 333 132 653 730 695 285 180 Core 8 | 3 . . . . . . . . . . . . . . . . . . . . . . . . . . . 5 Treads 13958 | 6 1 . 438 463 1333 179 469 718 596 502 1198 267 81 692 751 732 772 729 553 352 127 333 132 653 730 695 285 171 Legs . | . . . . . . . . . . . . . . . . . . . . . . . . . . . . . Wheels 1371 | 43 567 606 155 . . . . . . . . . . . . . . . . . . . . . . . . . Hover . | . . . . . . . . . . . . . . . . . . . . . . . . . . . . . Flight 4 | . . . . . . . . . . . . . . . . . . . . . . . . . . . . 4 Fastest Speed 40 | 50 90 130 130 180 200 250 245 205 212 212 220 220 220 200 200 180 200 200 220 220 220 220 220 200 220 220 220 40 Average Speed 209 | 95 125 130 180 190 222 250 249 238 222 217 220 220 220 208 209 190 200 213 220 220 220 220 220 228 238 221 220 214 Slowest Speed 350 | 160 200 130 200 200 250 250 350 265 280 220 280 220 220 280 300 220 200 220 220 220 220 220 220 240 240 240 240 280 Overloaded Moves . | . . . . . . . . . . . . . . . . . . . . . . . . . . . . . Propulsion Burnouts . | . . . . . . . . . . . . . . . . . . . . . . . . . . . . . Robots Hopped . | . . . . . . . . . . . . . . . . . . . . . . . . . . . . . Cave-ins Triggered . | . . . . . . . . . . . . . . . . . . . . . . . . . . . . . Exploration Rate (%) 52 | 5 98 96 53 93 88 24 52 78 61 54 37 50 4 67 22 96 25 99 18 56 4 64 5 100 25 88 13 45 Regions Visited 28 Branch Regions 5 Pre-discovered Areas 6 | . 2 1 . . 1 . 1 . 1 . . . . . . . . . . . . . . . . . . . Known Exits Taken 9 | . . . . . . . 1 . 1 . 1 . 1 . . . 1 . 1 . 1 . . . 1 . 1 . Unknown Exits Taken 7 | 1 1 1 1 1 1 1 . . . . . . . . . . . . . . . . . . . . . . Scrap Searched 5 | . . 2 . 2 . 1 . . . . . . . . . . . . . . . . . . . . . . Spaces Dug 77 | . . . . . . . 2 . 3 2 1 . . . . 5 . 2 . 11 . 23 . . 20 . 1 7 Terrain Destroyed 868 | . 16 47 146 . 1 . 38 . 31 10 30 55 . 46 2 5 . 4 21 46 1 49 2 2 185 3 13 115 Melee 20 | . . . . . . . 2 . . 2 1 . . . . 5 . 2 . . . . . . 1 . 1 6 Projectile 94 | . . . . . 1 . . . 31 1 1 . . 5 2 . . . 2 2 1 6 2 2 25 3 . 10 AOE 754 | . 16 47 146 . . . 36 . . 7 28 55 . 41 . . . 2 19 44 . 43 . . 159 . 12 99 Terrain Rammed . | . . . . . . . . . . . . . . . . . . . . . . . . . . . . . Walls Destroyed . | . . . . . . . . . . . . . . . . . . . . . . . . . . . . . Machines Disabled . | . . . . . . . . . . . . . . . . . . . . . . . . . . . . . Actions | -11 -10 -10 -9 -9 -9 -8 -8 -8 -8 -8 -7 -7 -7 -7 -6 -6 -6 -6 -5 -5 -5 -5 -4 -4 -4 -4 -3 -3 --------- Run | Scr Mat Min Mat Min Exi Min Mat Gar Mat Gar Fac Gar Fac Gar Fac Was Fac Gar Fac Gar Fac Gar Fac Was Fac Gar Res Tes Total 20721 | 73 714 666 815 511 1578 209 686 916 852 584 1896 322 94 817 1012 901 932 866 729 457 163 510 156 847 1166 1206 510 533 Wait 2137 | . 36 23 54 41 21 2 59 18 104 5 515 2 12 47 96 19 129 33 77 51 28 70 8 51 112 364 99 61 Move 15308 | 51 567 605 592 462 1332 178 468 716 595 500 1197 265 80 690 751 731 771 727 552 350 126 331 132 652 730 693 284 180 Hop . | . . . . . . . . . . . . . . . . . . . . . . . . . . . . . Pick Up 378 | 10 19 2 28 2 58 5 16 15 11 5 22 2 . 7 20 14 6 11 10 15 2 7 3 9 27 21 11 20 Fast Attach 64 | 4 2 . 3 1 . . 4 4 4 1 5 1 . . 6 8 1 2 2 1 . 1 3 3 1 1 1 5 Attach 168 | 2 6 3 6 . 11 3 4 14 3 3 9 1 . 5 12 2 . 1 5 1 . 2 3 1 13 10 12 36 Detach 21 | . 1 . . . 1 1 2 1 1 . . . . . . 2 . . 1 . . . 1 . 1 1 2 6 Swap 295 | 1 5 7 16 1 16 2 10 10 13 7 13 8 1 6 10 10 4 22 8 7 3 23 . 8 32 18 13 21 Drop 284 | . 8 1 22 4 32 3 20 22 17 4 12 1 1 2 11 30 7 9 6 6 1 4 3 11 10 12 4 21 Fire 1856 | 5 70 25 90 . 105 11 98 82 98 36 120 20 . 47 105 77 13 40 68 26 3 70 3 112 222 74 78 158 Melee 95 | . . . . . 1 . 5 22 . 7 1 14 . . . 8 . 7 . . . . . . 16 2 2 10 Ram . | . . . . . . . . . . . . . . . . . . . . . . . . . . . . . Kick . | . . . . . . . . . . . . . . . . . . . . . . . . . . . . . Crush 21 | . . . 4 . . 1 . . 6 . 2 . . . 1 . 1 . . . . . . . 2 . 4 . Escape Stasis 91 | . . . . . . 2 . 12 . 16 . 8 . 12 . . . 14 . . . 2 . . . 10 . 15 Rewire 1 | . . . . . . . . . . . . . . 1 . . . . . . . . . . . . . . Trap 2 | . . . . . 1 1 . . . . . . . . . . . . . . . . . . . . . . Miscellaneous . | . . . . . . . . . . . . . . . . . . . . . . . . . . . . . Route ------- -11/Scrapyard -10/Materials (discovered 5 exits: *Mat x3 / *Min x2) -10/Mines (discovered 2 exits: *Mat x2) -9/Materials (discovered 3 exits: *Mat / [*Min] / [*Sto]) -9/Mines (discovered 3 exits: *Mat x2 / *Exi) -9/Exiles -8/Mines -8/Materials (discovered 3 exits: *Fac x2 / Gar) -8/Garrison (discovered 3 exits: *Mat x3) -8/Materials (discovered 3 exits: *Fac x2 / Gar) -8/Garrison (discovered 2 exits: *Fac x2) -7/Factory (discovered 4 exits: *Fac x2 / [*Low] / Gar) -7/Garrison -7/Factory -7/Garrison (discovered 2 exits: *Fac x2) -6/Factory -6/Waste -6/Factory (discovered 3 exits: *Fac / [*Low] / Gar) -6/Garrison (discovered 3 exits: *Fac x3) -5/Factory (discovered 3 exits: [*Upp x2] / Gar) -5/Garrison -5/Factory -5/Garrison -4/Factory -4/Waste -4/Factory (discovered 3 exits: [*Res] / [*Upp] / Gar) -4/Garrison (discovered 3 exits: [*Res x3]) -3/Research -3/Testing History --------- Turn | Location | Event 2 | -11/Scrapyard | Met Revision 17 27 | -11/Scrapyard | Discovered new exit (range 15) 83 | -11/Scrapyard | Entered Materials 235 | -10/Materials | Discovered new exit (range 16) 304 | -10/Materials | Build established: Mutant 566 | -10/Materials | Discovered new exit (range 16) 566 | -10/Materials | Discovered new exit (range 12) 855 | -10/Materials | Core integrity fell below 50% 925 | -10/Materials | Discovered new exit (range 13) 971 | -10/Materials | Discovered new exit (range 7) 1054 | -10/Materials | Entered Mines 1113 | -10/Mines | Met a Derelict bent on vengeance 1151 | -10/Mines | Received a Rocket Launcher from a helpful Derelict 1301 | -10/Mines | Learned Materials security intel 1539 | -10/Mines | Core integrity fell below 20% 1580 | -10/Mines | Discovered new exit (range 5) 1900 | -10/Mines | Discovered new exit (range 13) 1939 | -10/Mines | Entered Materials 1939 | -9/Materials | Evolved 2 slots: Utility x2 2131 | -9/Materials | Discovered new exit (range 16) 2341 | -9/Materials | Destroyed 7 combat bots 2739 | -9/Materials | First assault squad dispatched 2805 | -9/Materials | Discovered new exit (range 15) 2840 | -9/Materials | Destroyed 15 combat bots 2905 | -9/Materials | Discovered new exit (range 10) 3353 | -9/Materials | Build established: Scavenger-Mutant 3380 | -9/Materials | Entered Mines 3422 | -9/Mines | Discovered new exit (range 15) 3512 | -9/Mines | Found a hidden stash of uninstalled traps 3702 | -9/Mines | Received a Mining Laser from a helpful Derelict 3742 | -9/Mines | Assisted by bots powering up and referring to "LRC-V3" 4054 | -9/Mines | Discovered new exit (range 12) 4108 | -9/Mines | Learned location of 2 exits from Materials 4255 | -9/Mines | Deemed a non-threat by the Exiles lab entrance 4255 | -9/Mines | Discovered new exit (range 5) 4307 | -9/Mines | Entered Exiles 4355 | -9/Exiles | Met 8R-AWN 4389 | -9/Exiles | Met EX-HEX 4486 | -9/Exiles | Met EX-DEC 4578 | -9/Exiles | Discovered new exit (range 12) 4799 | -9/Exiles | Learned location of Zion (-7) 4908 | -9/Exiles | Build established: Hauler-Mutant 5316 | -9/Exiles | Met EX-BIN 5341 | -9/Exiles | Aligned with FarCom system 5343 | -9/Exiles | Given EX-Vault access code 5392 | -9/Exiles | Opened EX-Vault 5402 | -9/Exiles | Found Superbattery 5407 | -9/Exiles | Found Longsword +1 5457 | -9/Exiles | Warned to stay clear of 0b10 Research branches 5702 | -9/Exiles | Attacked by the Exiles 5810 | -9/Exiles | Core integrity fell below 50% 5840 | -9/Exiles | Lost 3 parts (1p1u1w) 5900 | -9/Exiles | Lost 3 parts (3w) 5918 | -9/Exiles | Destroyed 8R-AWN 5924 | -9/Exiles | Found Prototype Ballistic Gun 5957 | -9/Exiles | Found Prototype Device 5979 | -9/Exiles | Identified AS-neutralizer No. 17b 5997 | -9/Exiles | Found Prototype Processor 6162 | -9/Exiles | Identified 8R-AWN's Boregun 6391 | -9/Exiles | Destroyed EX-DEC 6420 | -9/Exiles | Destroyed EX-BIN 6457 | -9/Exiles | Destroyed EX-HEX 6567 | -9/Exiles | Found Deploy-a-Sentry 7053 | -9/Exiles | Found AWS/Autocannon 7703 | -9/Exiles | Left Exiles lab with Deploy-a-Sentry 7703 | -9/Exiles | Entered Mines 7758 | -8/Mines | ME-RLN came to Exiles' defense 7760 | -8/Mines | DAS Turret deployed 7769 | -8/Mines | Allies destroyed ME-RLN 7787 | -8/Mines | Found Prototype Special Weapon 7788 | -8/Mines | Identified ME-RLN's Wand 7807 | -8/Mines | Core integrity fell below 20% 7830 | -8/Mines | Found Prototype Device 7835 | -8/Mines | Found Prototype Device 7993 | -8/Mines | Discovered new exit (range 5) 8201 | -8/Mines | Entered Materials 8201 | -8/Materials | Evolved 2 slots: Utility x2 8201 | -8/Materials | Identified Exp. Phase Shifter 8202 | -8/Materials | Identified exit to Factory 8202 | -8/Materials | Identified ME-RLN's Chromatic Screen 9689 | -8/Materials | Garrison activated, responded to threat 9756 | -8/Materials | Identified exit to Garrison 9758 | -8/Materials | Entered Garrison 9780 | -8/Garrison | Triggered checkpoint 9994 | -8/Garrison | Triggered checkpoint 9994 | -8/Garrison | Triggered checkpoint 10047 | -8/Garrison | Lost 3 parts (1p1n1u) 10098 | -8/Garrison | Triggered checkpoint 10098 | -8/Garrison | Triggered checkpoint 10311 | -8/Garrison | Discovered new exit (range 12) 10536 | -8/Garrison | Discovered new exit (range 9) 10575 | -8/Garrison | Installed Relay Interface Framework 10680 | -8/Garrison | Triggered checkpoint 10708 | -8/Garrison | Garrison Relay disabled 10944 | -8/Garrison | Triggered checkpoint 11102 | -8/Garrison | Triggered checkpoint 11110 | -8/Garrison | Core integrity fell below 50% 11386 | -8/Garrison | Discovered new exit (range 13) 11456 | -8/Garrison | Triggered checkpoint 11487 | -8/Garrison | Garrison Relay disabled 11837 | -8/Garrison | Entered Materials 12624 | -8/Materials | Discovered exit to Factory (range 11) 13055 | -8/Materials | Repaired Hrd. Heavy Armor Plating 13397 | -8/Materials | Discovered exit to Factory (range 16) 13437 | -8/Materials | First assault squad dispatched 13466 | -8/Materials | Garrison activated, responded to threat 13603 | -8/Materials | Identified exit to Garrison 13606 | -8/Materials | Entered Garrison 13720 | -8/Garrison | Triggered checkpoint 14008 | -8/Garrison | Triggered checkpoint 14016 | -8/Garrison | Core integrity fell below 20% 14052 | -8/Garrison | Triggered checkpoint 14116 | -8/Garrison | Discovered exit to Factory (range 9) 14358 | -8/Garrison | Discovered exit to Factory (range 9) 14393 | -8/Garrison | Expanded RIF knowledge: Watcher Feeds 14540 | -8/Garrison | Triggered checkpoint 14635 | -8/Garrison | Garrison Relay disabled 14853 | -8/Garrison | Entered Factory 14853 | -7/Factory | Evolved 2 slots: Utility x2 16044 | -7/Factory | Repaired Cold Fusion Reactor 16053 | -7/Factory | First assault squad dispatched 16514 | -7/Factory | Build established: Scavenger-Mutant 16517 | -7/Factory | Fabricated Hrd. Heavy Armor Plating (x1) 16551 | -7/Factory | Discovered new exit (range 16) 16905 | -7/Factory | Found Powered Armor 17218 | -7/Factory | Build established: Hauler-Mutant 17439 | -7/Factory | Identified Exp. Targeting Computer 17902 | -7/Factory | Discovered new exit (range 10) 18172 | -7/Factory | Discovered new exit (range 9) 18402 | -7/Factory | Identified exit to Garrison 18405 | -7/Factory | Entered Garrison 18416 | -7/Garrison | Expanded RIF knowledge: Alert ID Control 18533 | -7/Garrison | Triggered checkpoint 18568 | -7/Garrison | Triggered checkpoint 18596 | -7/Garrison | Triggered checkpoint 18598 | -7/Garrison | Core integrity fell below 50% 18824 | -7/Garrison | Triggered checkpoint 18980 | -7/Garrison | Garrison Relay disabled 19080 | -7/Garrison | Discovered new exit (range 12) 19109 | -7/Garrison | Entered Factory 19297 | -7/Factory | Identified exit to Garrison 19299 | -7/Factory | Entered Garrison 19416 | -7/Garrison | Triggered checkpoint 19483 | -7/Garrison | Garrison Relay disabled 19614 | -7/Garrison | Triggered checkpoint 19735 | -7/Garrison | Lost 4 parts (1p2n1w) 19801 | -7/Garrison | Build established: Bothacker-Mutant 19819 | -7/Garrison | Discovered new exit (range 15) 20110 | -7/Garrison | Destroyed 9 combat bots 20203 | -7/Garrison | Discovered new exit (range 15) 20243 | -7/Garrison | Expanded RIF knowledge: Structural Interface 20322 | -7/Garrison | Triggered checkpoint 20368 | -7/Garrison | Garrison Relay disabled 20683 | -7/Garrison | Build established: Botlord-Mutant 20824 | -7/Garrison | Triggered checkpoint 20949 | -7/Garrison | Entered Factory 20949 | -6/Factory | Evolved 2 slots: Utility x2 21299 | -6/Factory | First assault squad dispatched 21945 | -6/Factory | Lost 9 parts (1p1n3u4w) 21980 | -6/Factory | Discovered new exit (range 4) 22985 | -6/Factory | Sucked down chute 22985 | -6/Factory | Entered Waste 22986 | -6/Waste | Met a frightened Derelict 23027 | -6/Waste | Spotted C-40 Crusher 23051 | -6/Waste | Spotted C-40 Crusher 23051 | -6/Waste | Spotted C-40 Crusher 23064 | -6/Waste | Destroyed C-40 Crusher 23076 | -6/Waste | Allies destroyed C-40 Crusher 23084 | -6/Waste | Spotted C-40 Crusher 23084 | -6/Waste | Spotted C-40 Crusher 23101 | -6/Waste | Destroyed C-40 Crusher 23138 | -6/Waste | Allies destroyed C-40 Crusher 23152 | -6/Waste | Found Damper Plating 23169 | -6/Waste | Found Damper Plating 23196 | -6/Waste | Spotted C-40 Crusher 23313 | -6/Waste | Destroyed C-40 Crusher 23344 | -6/Waste | Build established: Bothacker-Mutant 23398 | -6/Waste | Destroyed C-40 Crusher 23530 | -6/Waste | Discovered new exit (range 12) 23678 | -6/Waste | Found Damper Plating 23938 | -6/Waste | Found Damper Plating 24328 | -6/Waste | Warlord forces began an assault 24633 | -6/Waste | Entered Factory 24633 | -6/Factory | Accompanied by 16 allies 24857 | -6/Factory | Spotted B-75 Beast 24864 | -6/Factory | Allies destroyed B-75 Beast 25193 | -6/Factory | Discovered new exit (range 15) 25333 | -6/Factory | Discovered new exit (range 16) 25861 | -6/Factory | Fabricated R-10 Processor (x1) 26206 | -6/Factory | Fabricated Hcp. Storage Unit (x1) 26237 | -6/Factory | Fabricated Hcp. Storage Unit (x1) 26300 | -6/Factory | Identified exit to Garrison 26339 | -6/Factory | Garrison activated, responded to threat 26358 | -6/Factory | Entered Garrison 26358 | -6/Garrison | Accompanied by 4 allies 26386 | -6/Garrison | Triggered checkpoint 26519 | -6/Garrison | Build established: Hauler-Mutant 26522 | -6/Garrison | Garrison Relay disabled 26706 | -6/Garrison | Triggered checkpoint 26767 | -6/Garrison | Triggered checkpoint 26812 | -6/Garrison | Triggered checkpoint 26884 | -6/Garrison | Discovered new exit (range 10) 26936 | -6/Garrison | Triggered checkpoint 26957 | -6/Garrison | Garrison Relay disabled 27116 | -6/Garrison | Triggered checkpoint 27168 | -6/Garrison | Discovered new exit (range 10) 27201 | -6/Garrison | Expanded RIF knowledge: Autoassimilate 27260 | -6/Garrison | Build established: Bothacker-Mutant 27301 | -6/Garrison | Garrison Relay disabled 27422 | -6/Garrison | Triggered checkpoint 27574 | -6/Garrison | Garrison Relay disabled 27582 | -6/Garrison | Triggered checkpoint 27685 | -6/Garrison | Discovered new exit (range 13) 28129 | -6/Garrison | Entered Factory 28129 | -5/Factory | Accompanied by 5 allies 28129 | -5/Factory | Evolved 2 slots: Utility x2 28216 | -5/Factory | Build established: Botlord-Mutant 28446 | -5/Factory | Discovered new exit (range 9) 28482 | -5/Factory | Discovered new exit (range 8) 29625 | -5/Factory | Identified exit to Garrison 29638 | -5/Factory | Entered Garrison 29702 | -5/Garrison | Triggered checkpoint 29763 | -5/Garrison | Garrison Relay disabled 29934 | -5/Garrison | Triggered checkpoint 29936 | -5/Garrison | Destroyed 7 combat bots 30063 | -5/Garrison | Discovered new exit (range 14) 30107 | -5/Garrison | Expanded RIF knowledge: Signal Jamming 30226 | -5/Garrison | Found Quantum Capacitor 30229 | -5/Garrison | Found Quantum Capacitor 30384 | -5/Garrison | Triggered checkpoint 30448 | -5/Garrison | Garrison Relay disabled 30558 | -5/Garrison | Entered Factory 30558 | -5/Factory | Accompanied by 2 allies 30708 | -5/Factory | Fabricated Hcp. Storage Unit (x1) 30772 | -5/Factory | Fabricated Hcp. Storage Unit (x1) 30851 | -5/Factory | Identified exit to Garrison 30875 | -5/Factory | Entered Garrison 30875 | -5/Garrison | Accompanied by 2 allies 31070 | -5/Garrison | Triggered checkpoint 31142 | -5/Garrison | Garrison Relay disabled 31243 | -5/Garrison | Spotted B-75 Beast 31336 | -5/Garrison | Triggered checkpoint 31399 | -5/Garrison | Destroyed B-75 Beast 31454 | -5/Garrison | Triggered checkpoint 31472 | -5/Garrison | Triggered checkpoint 31590 | -5/Garrison | Discovered new exit (range 12) 31636 | -5/Garrison | Expanded RIF knowledge: Program Shield 31711 | -5/Garrison | Triggered checkpoint 31771 | -5/Garrison | Garrison Relay disabled 31909 | -5/Garrison | Entered Factory 31909 | -4/Factory | Evolved 2 slots: Power x1, Utility x1 32227 | -4/Factory | Sucked down chute 32227 | -4/Factory | Entered Waste 32241 | -4/Waste | Spotted C-40 Crusher 32265 | -4/Waste | Crushed by Compactor (1 part destroyed, 1 dropped) 32275 | -4/Waste | Spotted C-40 Crusher 32293 | -4/Waste | Spotted C-40 Crusher 32295 | -4/Waste | Spotted C-40 Crusher 32306 | -4/Waste | Spotted C-40 Crusher 32333 | -4/Waste | Spotted C-40 Crusher 32731 | -4/Waste | Discovered new exit (range 12) 33214 | -4/Waste | Destroyed C-40 Crusher 33238 | -4/Waste | Destroyed C-40 Crusher 33243 | -4/Waste | Found Damper Plating 33318 | -4/Waste | Destroyed C-40 Crusher 33334 | -4/Waste | Found Damper Plating 33475 | -4/Waste | Destroyed C-40 Crusher 33512 | -4/Waste | Found Damper Plating 33604 | -4/Waste | Destroyed C-40 Crusher 33735 | -4/Waste | Destroyed C-40 Crusher 33747 | -4/Waste | Found Damper Plating 34113 | -4/Waste | Entered Factory 34906 | -4/Factory | First assault squad dispatched 35117 | -4/Factory | Discovered new exit (range 9) 35756 | -4/Factory | Destroyed 7 combat bots 35786 | -4/Factory | Discovered new exit (range 13) 36258 | -4/Factory | Assembled infested ambush trap array 36339 | -4/Factory | Destroyed 10 combat bots 36394 | -4/Factory | Lost 4 parts (1n2u1w) 36420 | -4/Factory | Destroyed 8 combat bots 36465 | -4/Factory | Found Prototype Hackware 36556 | -4/Factory | Identified Exp. Hacking Suite 36650 | -4/Factory | Identified exit to Garrison 36652 | -4/Factory | Entered Garrison 37100 | -4/Garrison | Spotted B-86 Titan 37266 | -4/Garrison | Found Antimissile System 37402 | -4/Garrison | Triggered checkpoint 37505 | -4/Garrison | Destroyed 9 combat bots 37543 | -4/Garrison | Destroyed B-86 Titan 37571 | -4/Garrison | Lost 5 parts (1n2u2w) 37750 | -4/Garrison | Discovered new exit (range 14) 38101 | -4/Garrison | Discovered new exit (range 8) 38352 | -4/Garrison | Discovered new exit (range 9) 38381 | -4/Garrison | Expanded RIF knowledge: Hotswap 38446 | -4/Garrison | Triggered checkpoint 38484 | -4/Garrison | Garrison Relay disabled 38715 | -4/Garrison | Garrison Relay disabled 38846 | -4/Garrison | Entered Research 38846 | -3/Research | Evolved 2 slots: Utility x2 39205 | -3/Research | System corruption reached 10% 39681 | -3/Research | Discovered new exit (range 8) 39688 | -3/Research | Identified exit to Testing 39846 | -3/Research | Entered Testing 40096 | -3/Testing | Scanned by Researcher 40121 | -3/Testing | Found SHELL Armor 40130 | -3/Testing | Found Hvy. Regenerative Plating 40135 | -3/Testing | Found Med. Regenerative Plating 40329 | -3/Testing | Found Prototype Processor 40343 | -3/Testing | Identified Spectral Analyzer 40445 | -3/Testing | Destroyed 9 combat bots 40552 | -3/Testing | Garrison activated, responded to threat 40596 | -3/Testing | First assault squad dispatched 40628 | -3/Testing | Destroyed 14 combat bots 40643 | -3/Testing | Core integrity fell below 50% 40689 | -3/Testing | Destroyed 7 combat bots 40697 | -3/Testing | Lost 20 parts (5p2n6u7w) 40779 | -3/Testing | Core integrity fell below 20% 40786 | -3/Testing | Destroyed by H-77 Assassin with Coil Gun Last Messages --------------- 40774_ C-55 Analyst is analyzing... 40774_ Held in stasis. 40774_ C-55 Analyst is analyzing... 40776_ K-01 Serf collects debris. 40776_ Slug penetrates Wall. 40776_ Penetrated by Slug. 40778_ Held in stasis. 40778_ C-55 Analyst is analyzing... 40778_ Penetrated by Slug. 40778_ Slug penetrates Organic Neutralizer. 40779_ Held in stasis. 40781_ Penetrated by Slug. 40781_ Slug penetrates Organic Neutralizer. 40782_ Held in stasis. 40783_ C-55 Analyst is analyzing... 40783_ Penetrated by Slug. [Achievement: 30k Club] [Achievement: 40k Club] [Achievement: 50k Club] [Achievement: Punisher] Map ----- +----------------------------------------------------+ | #??# T#????? | | #??# ""#????? | | ""#################### #??# """"" ""#????? | | ""#???????## # #??# """"" ! ""#????? | | ###???????## # #??# """"" ######## | | ??????????## """ """ + = #### """"" + | | ???????????# """ """ #[![!#|## ####+### | | ???????????# """ """ #[[*!#[########+######## | | ???????????# #/ ######## / | | ???????????# # [ %# # ####### """ | | ???????????#] #= %%#""" # #??????????? | | ???????????###"" ""###*=u%#""" + #??????????? | | ?????????????#""S" #|!![# # #??????????? | | ?????????????#"""" # #%%!%#! # #??????????? | | ?????????????###### !#!!!*#% # #??????????? | | ????????????????## ##[%![# # #??????????? | | ????????????????# ## #=k!!# " !# #??????????? | | ????????????????# ##[%=%# # #??????????? | | ????????????????# ##!u*[# + #??????????? | | ????????????????## #k*k%#! # #??????????? | | ?????????????????# #====# # #??????????? | | ????????????##########%[[%######## #??????????? | | ????????????# =%[%% =! #?# #??????????? | | ????????????# *%ucg%h!u #?# #??????????? | | ????????????# =%uch==" #?# #??????????? | | ????????????# k !=* @ " #?# +??????????? | | ????????????# ###*%" """ #?# #??????????? | | ????????????# ??# = k R #?# #??????????? | | ????????????# ???# " " ### #??????????? | | ??????????? ????# " " m #??????????? | | ?????????? ?????# ""G"" m #??????????? | | ?????????? ??????# k #??????????? | | ?????????? ???????# #??????????? | | ???????????????????## #######;### #??????????? | | ????????????????????# #????? ?# #??????????? | | ????????????????????# #?????= # #??????????? | | ????????????????????# #???? # #??????????? | | ????????????????????# #????=! # #??[???????? | | ????????????????????# #???==! # #??????????? | | ????????????????????# #???=! # +??????????? | | ????????????????????+ #?? # # ?????????? | | ????????????????????# #?? = # # =????????? | | ????????????????????# #? # #?#????????? | | ????????????????????# #?######### ??????????? | | ????????????????????# #?????????? ??????????? | | ????????????????????# #?????????? ??????????? | | ????????????????????# #?????????? ?????????? | | ????????????????????# #??????????###+???????????? | | ???????????????????? ?????????????????????????? | | ???????????????????? ?????????????????????????? | +----------------------------------------------------+ Best States ------------- Heat Dissipation 108 Energy Generation 43 Energy Capacity 575 Matter Stores 500 Matter Capacity 500 Sight Range 16 Robot Scan Range 20 Terrain Scan Density 10 Armor Coverage 2850 Resistance: KI 30 Resistance: TH 10 Resistance: EM 90 Core Shielding 30 Phase Shifting 10 Evasion (%) 52 Targeting Accuracy 12 Core Analysis 10 Armor Integrity Analysis 66 Recoil Reduction 2 Salvage Targeting 2 Offensive Hacking 16 Defensive Hacking 14 Relay Coupler Types 51 Relay Coupler Value 2 Item Schematics ----------------- Hcp. Storage Unit | -10/Materials | Hacked Med. Storage Unit | -10/Mines | Hacked Hacking Suite | -9/Materials | Scanalyzed Com. Wheel | -8/Materials | Hacked Cld. Antimatter Reactor | -8/Materials | Scanalyzed Hrd. Heavy Armor Plating | -8/Materials | Scanalyzed Mak. Salvage Targeting Computer | -7/Factory | Scanalyzed Adv. Medium Treads | -6/Factory | Hacked Antimatter Reactor | -6/Factory | Scanalyzed Exp. Phase Shifter | -6/Factory | Scanalyzed Imp. Cooling System | -5/Factory | Scanalyzed Hvy. Regenerative Plating | -3/Testing | Hacked Spectral Analyzer | -3/Testing | Scanalyzed Robot Schematics ------------------ None Fabricated ------------ Hrd. Heavy Armor Plating | x1 | -7/Factory R-10 Processor | x1 | -6/Factory | Preloaded Hcp. Storage Unit | x1 | -6/Factory Hcp. Storage Unit | x1 | -6/Factory Hcp. Storage Unit | x1 | -5/Factory Hcp. Storage Unit | x1 | -5/Factory Alien Tech Used ----------------- None Achievements -------------- 30k Club 40k Club 50k Club Punisher Challenges ------------ None Game ------ Seed MakeshiftSeismicAccelerator Manual? 0 Play Time 05:28:56 Cumulative 204.5 hours Start 2020.10.02 @ 12:33:48 End 2020.10.05 @ 17:55:07 Sessions 5 Manual Loads 0 Difficulty Rogue Special Mode None Game No. 223 Rogue 223 Adventurer 0 Explorer 0 Win Type - Total 2 Types 2/0/0/0/0/0/0/0/0 Lore% 61 Gallery% 74 Achievement% 57 Wizard Run 0 Options --------- ASCII 0 Keyboard 0 Movement Numpad Keybinds 0 Fullscreen 2 Font 24/Smallcaps Map View 76x50 Tactical HUD 1 Map Filters NONE Filters NONE Steam 1 RUN: b454a4a8-9d7b-4589-aee8-9e14056eb6b7